[Event "Titled Tuesday Blitz October 31 Late 2023"]
[White "Javakhadze, Zurab"]
[Black "Toropov, Pavel"]
[WhiteFideId "13603647"]
[BlackFideId "24129178"]
[WhiteElo "2787"]
[BlackElo "2562"]
[Result "1/2-1/2"]
[Round "3"]
[TimeControl "180+1"]
[Date "2023.10.31"]
[WhiteClock "0:00:13"]
[BlackClock "0:00:30"]
[Board "28"]

1. Nf3 {[%clk 0:03:00]}  d5 {[%clk 0:02:48]} 2. g3 {[%clk 0:03:00]}  Nf6 {[%clk 0:02:46]} 3. Bg2 {[%clk 0:03:00]}  c5 {[%clk 0:02:43]} 4. O-O {[%clk 0:03:01]}  Nc6 {[%clk 0:02:41]} 5. d4 {[%clk 0:03:01]}  e6 {[%clk 0:02:40]} 6. c4 {[%clk 0:03:01]}  dxc4 {[%clk 0:02:33]} 7. Ne5 {[%clk 0:02:45]}  Nxe5 {[%clk 0:02:15]} 8. dxe5 {[%clk 0:02:44]}  Qxd1 {[%clk 0:02:13]} 9. Rxd1 {[%clk 0:02:44]}  Nd7 {[%clk 0:02:13]} 10. Na3 {[%clk 0:02:43]}  Be7 {[%clk 0:01:45]} 11. Nxc4 {[%clk 0:02:39]}  O-O {[%clk 0:01:43]} 12. Na5 {[%clk 0:02:08]}  Rb8 {[%clk 0:01:32]} 13. Bxb7 {[%clk 0:01:35]}  Nxe5 {[%clk 0:01:26]} 14. Bf4 {[%clk 0:01:33]}  Bf6 {[%clk 0:01:19]} 15. Bxc8 {[%clk 0:01:28]}  Rfxc8 {[%clk 0:01:13]} 16. Rac1 {[%clk 0:01:15]}  h6 {[%clk 0:01:00]} 17. b3 {[%clk 0:01:07]}  Rb5 {[%clk 0:00:54]} 18. Bxe5 {[%clk 0:00:56]}  Rxa5 {[%clk 0:00:50]} 19. Bxf6 {[%clk 0:00:52]}  gxf6 {[%clk 0:00:51]} 20. Rd2 {[%clk 0:00:51]}  Kf8 {[%clk 0:00:45]} 21. Rc4 {[%clk 0:00:49]}  Ke7 {[%clk 0:00:39]} 22. Rh4 {[%clk 0:00:48]}  f5 {[%clk 0:00:21]} 23. Kf1 {[%clk 0:00:41]}  Rb5 {[%clk 0:00:18]} 24. e3 {[%clk 0:00:34]}  Rb4 {[%clk 0:00:18]} 25. Rxh6 {[%clk 0:00:33]}  c4 {[%clk 0:00:18]} 26. bxc4 {[%clk 0:00:33]}  Rcxc4 {[%clk 0:00:17]} 27. Rh8 {[%clk 0:00:32]}  Rc1+ {[%clk 0:00:17]} 28. Ke2 {[%clk 0:00:32]}  Ra1 {[%clk 0:00:18]} 29. Rc8 {[%clk 0:00:25]}  Ra4 {[%clk 0:00:18]} 30. Rcc2 {[%clk 0:00:26]}  a5 {[%clk 0:00:16]} 31. h4 {[%clk 0:00:23]}  Ra3 {[%clk 0:00:17]} 32. Rc7+ {[%clk 0:00:17]}  Kf6 {[%clk 0:00:16]} 33. Rdd7 {[%clk 0:00:17]}  R3xa2+ {[%clk 0:00:15]} 34. Kf3 {[%clk 0:00:17]}  Rf1 {[%clk 0:00:16]} 35. Rxf7+ {[%clk 0:00:17]}  Ke5 {[%clk 0:00:17]} 36. e4 {[%clk 0:00:07]}  Rfxf2+ {[%clk 0:00:13]} 37. Ke3 {[%clk 0:00:07]}  Rfe2+ {[%clk 0:00:13]} 38. Kd3 {[%clk 0:00:07]}  fxe4+ {[%clk 0:00:13]} 39. Kc4 {[%clk 0:00:07]}  Rac2+ {[%clk 0:00:12]} 40. Kb3 {[%clk 0:00:07]}  Ra2 {[%clk 0:00:12]} 41. Rc5+ {[%clk 0:00:06]}  Kd4 {[%clk 0:00:12]} 42. Rc4+ {[%clk 0:00:06]}  Kd5 {[%clk 0:00:12]} 43. Rd7+ {[%clk 0:00:06]}  Ke5 {[%clk 0:00:12]} 44. Rc5+ {[%clk 0:00:07]}  Kf6 {[%clk 0:00:13]} 45. Rd4 {[%clk 0:00:05]}  Rad2 {[%clk 0:00:13]} 46. Rcc4 {[%clk 0:00:05]}  Rxd4 {[%clk 0:00:13]} 47. Rxd4 {[%clk 0:00:05]}  Re3+ {[%clk 0:00:14]} 48. Kc4 {[%clk 0:00:06]}  Rxg3 {[%clk 0:00:14]} 49. Rxe4 {[%clk 0:00:06]}  Kf5 {[%clk 0:00:15]} 50. Re1 {[%clk 0:00:06]}  Rg4+ {[%clk 0:00:15]} 51. Kb5 {[%clk 0:00:06]}  a4 {[%clk 0:00:16]} 52. Rf1+ {[%clk 0:00:06]}  Kg6 {[%clk 0:00:16]} 53. Re1 {[%clk 0:00:06]}  Kf6 {[%clk 0:00:16]} 54. Rf1+ {[%clk 0:00:07]}  Ke7 {[%clk 0:00:17]} 55. Rh1 {[%clk 0:00:07]}  Kf6 {[%clk 0:00:16]} 56. h5 {[%clk 0:00:07]}  Kg7 {[%clk 0:00:16]} 57. h6+ {[%clk 0:00:07]}  Kh7 {[%clk 0:00:17]} 58. Re1 {[%clk 0:00:08]}  Rg6 {[%clk 0:00:16]} 59. Kxa4 {[%clk 0:00:08]}  Kxh6 {[%clk 0:00:17]} 60. Kb3 {[%clk 0:00:08]}  Kg5 {[%clk 0:00:18]} 61. Kc4 {[%clk 0:00:07]}  Kf4 {[%clk 0:00:19]} 62. Kd4 {[%clk 0:00:06]}  Kf5 {[%clk 0:00:16]} 63. Rf1+ {[%clk 0:00:06]}  Kg5 {[%clk 0:00:16]} 64. Rg1+ {[%clk 0:00:06]}  Kf6 {[%clk 0:00:16]} 65. Rxg6+ {[%clk 0:00:06]}  Kxg6 {[%clk 0:00:17]} 66. Ke5 {[%clk 0:00:06]}  Kf7 {[%clk 0:00:18]} 67. Ke4 {[%clk 0:00:07]}  Ke7 {[%clk 0:00:18]} 68. Kf4 {[%clk 0:00:07]}  Kf6 {[%clk 0:00:18]} 69. Ke4 {[%clk 0:00:08]}  e5 {[%clk 0:00:19]} 70. Ke3 {[%clk 0:00:08]}  Ke6 {[%clk 0:00:20]} 71. Ke4 {[%clk 0:00:08]}  Kd6 {[%clk 0:00:20]} 72. Ke3 {[%clk 0:00:09]}  Kd5 {[%clk 0:00:21]} 73. Kd3 {[%clk 0:00:10]}  e4+ {[%clk 0:00:22]} 74. Ke3 {[%clk 0:00:10]}  Ke5 {[%clk 0:00:23]} 75. Ke2 {[%clk 0:00:11]}  Kd4 {[%clk 0:00:24]} 76. Kd2 {[%clk 0:00:11]}  e3+ {[%clk 0:00:25]} 77. Ke2 {[%clk 0:00:11]}  Ke4 {[%clk 0:00:26]} 78. Ke1 {[%clk 0:00:12]}  Kd3 {[%clk 0:00:26]} 79. Kd1 {[%clk 0:00:12]}  Kd4 {[%clk 0:00:27]} 80. Ke2 {[%clk 0:00:12]}  Ke4 {[%clk 0:00:28]} 81. Ke1 {[%clk 0:00:12]}  Kf3 {[%clk 0:00:29]} 82. Kf1 {[%clk 0:00:12]}  e2+ {[%clk 0:00:29]} 83. Ke1 {[%clk 0:00:13]}  Ke3 {[%clk 0:00:30]} 1/2-1/2


[Site "https://www.chess.com"]

[Event "Titled Tuesday Blitz October 31 Late 2023"]
[White "Deeper44"]
[Black "Horton, Andrew P"]
[BlackFideId "424269"]
[WhiteElo "2548"]
[BlackElo "2763"]
[Result "0-1"]
[Round "3"]
[TimeControl "180+1"]
[Date "2023.10.31"]
[WhiteClock "0:00:09"]
[BlackClock "0:00:11"]
[Board "29"]

1. d4 {[%clk 0:02:59]}  Nf6 {[%clk 0:02:57]} 2. c4 {[%clk 0:02:59]}  d6 {[%clk 0:02:56]} 3. Nf3 {[%clk 0:02:59]}  Nbd7 {[%clk 0:02:55]} 4. g3 {[%clk 0:02:59]}  e5 {[%clk 0:02:53]} 5. Bg2 {[%clk 0:02:59]}  Be7 {[%clk 0:02:53]} 6. O-O {[%clk 0:02:59]}  c6 {[%clk 0:02:53]} 7. Nc3 {[%clk 0:02:54]}  O-O {[%clk 0:02:53]} 8. Qc2 {[%clk 0:02:53]}  Qc7 {[%clk 0:02:49]} 9. Rd1 {[%clk 0:02:52]}  Re8 {[%clk 0:02:48]} 10. b3 {[%clk 0:01:58]}  Bf8 {[%clk 0:02:44]} 11. e4 {[%clk 0:01:51]}  a6 {[%clk 0:02:35]} 12. h3 {[%clk 0:01:43]}  b5 {[%clk 0:02:18]} 13. cxb5 {[%clk 0:01:15]}  cxb5 {[%clk 0:02:17]} 14. a3 {[%clk 0:00:45]}  Bb7 {[%clk 0:02:11]} 15. Nh4 {[%clk 0:00:21]}  Nxe4 {[%clk 0:01:38]} 16. Bxe4 {[%clk 0:00:20]}  Bxe4 {[%clk 0:01:37]} 17. Qxe4 {[%clk 0:00:21]}  Qxc3 {[%clk 0:01:38]} 18. Be3 {[%clk 0:00:12]}  Nf6 {[%clk 0:01:24]} 19. Qd3 {[%clk 0:00:10]}  Rac8 {[%clk 0:01:22]} 20. dxe5 {[%clk 0:00:10]}  dxe5 {[%clk 0:01:22]} 21. a4 {[%clk 0:00:10]}  e4 {[%clk 0:00:55]} 22. Qxc3 {[%clk 0:00:09]}  Rxc3 {[%clk 0:00:56]} 23. axb5 {[%clk 0:00:09]}  axb5 {[%clk 0:00:57]} 24. Rab1 {[%clk 0:00:09]}  Rd3 {[%clk 0:00:55]} 25. Nf5 {[%clk 0:00:09]}  Nd5 {[%clk 0:00:34]} 26. Rxd3 {[%clk 0:00:03]}  exd3 {[%clk 0:00:32]} 27. Bd4 {[%clk 0:00:02]}  g6 {[%clk 0:00:30]} 28. Ne3 {[%clk 0:00:02]}  Nxe3 {[%clk 0:00:30]} 29. Bxe3 {[%clk 0:00:03]}  Bb4 {[%clk 0:00:27]} 30. Rd1 {[%clk 0:00:03]}  Rd8 {[%clk 0:00:27]} 31. Kf1 {[%clk 0:00:03]}  Bc3 {[%clk 0:00:24]} 32. Kg2 {[%clk 0:00:03]}  f5 {[%clk 0:00:24]} 33. Kf3 {[%clk 0:00:03]}  Kf7 {[%clk 0:00:25]} 34. g4 {[%clk 0:00:04]}  Ke6 {[%clk 0:00:25]} 35. gxf5+ {[%clk 0:00:05]}  Kxf5 {[%clk 0:00:25]} 36. Rc1 {[%clk 0:00:05]}  b4 {[%clk 0:00:24]} 37. Rd1 {[%clk 0:00:05]}  Rd7 {[%clk 0:00:23]} 38. Rg1 {[%clk 0:00:05]}  Kf6 {[%clk 0:00:18]} 39. Bg5+ {[%clk 0:00:05]}  Ke6 {[%clk 0:00:18]} 40. Be3 {[%clk 0:00:06]}  Rd5 {[%clk 0:00:17]} 41. Ke4 {[%clk 0:00:06]}  Kd6 {[%clk 0:00:08]} 42. Rd1 {[%clk 0:00:06]}  Rh5 {[%clk 0:00:07]} 43. Rxd3+ {[%clk 0:00:05]}  Ke6 {[%clk 0:00:07]} 44. Bf4 {[%clk 0:00:04]}  Rh4 {[%clk 0:00:07]} 45. Kf3 {[%clk 0:00:04]}  Rxh3+ {[%clk 0:00:07]} 46. Bg3 {[%clk 0:00:05]}  Rh1 {[%clk 0:00:05]} 47. Rd6+ {[%clk 0:00:05]}  Ke7 {[%clk 0:00:05]} 48. Rb6 {[%clk 0:00:04]}  Rb1 {[%clk 0:00:05]} 49. Bd6+ {[%clk 0:00:04]}  Kd7 {[%clk 0:00:06]} 50. Bxb4 {[%clk 0:00:05]}  Rxb3 {[%clk 0:00:06]} 51. Bc5 {[%clk 0:00:05]}  Rxb6 {[%clk 0:00:03]} 52. Bxb6 {[%clk 0:00:05]}  Ke6 {[%clk 0:00:04]} 53. Be3 {[%clk 0:00:06]}  Kf5 {[%clk 0:00:04]} 54. Kg3 {[%clk 0:00:06]}  Bf6 {[%clk 0:00:05]} 55. Bd2 {[%clk 0:00:06]}  Bg5 {[%clk 0:00:06]} 56. Bc3 {[%clk 0:00:06]}  h5 {[%clk 0:00:06]} 57. Bd4 {[%clk 0:00:05]}  Bf6 {[%clk 0:00:06]} 58. Be3 {[%clk 0:00:05]}  Be5+ {[%clk 0:00:07]} 59. Kh3 {[%clk 0:00:05]}  Bf4 {[%clk 0:00:07]} 60. Bc5 {[%clk 0:00:05]}  g5 {[%clk 0:00:07]} 61. Be7 {[%clk 0:00:04]}  Be5 {[%clk 0:00:07]} 62. f3 {[%clk 0:00:02]}  Bf6 {[%clk 0:00:07]} 63. Bd6 {[%clk 0:00:02]}  Be5 {[%clk 0:00:08]} 64. Be7 {[%clk 0:00:03]}  Bf6 {[%clk 0:00:07]} 65. Bd6 {[%clk 0:00:03]}  Bd8 {[%clk 0:00:07]} 66. Bb8 {[%clk 0:00:03]}  Be7 {[%clk 0:00:07]} 67. Bc7 {[%clk 0:00:03]}  Bf8 {[%clk 0:00:06]} 68. Bb8 {[%clk 0:00:04]}  Bc5 {[%clk 0:00:05]} 69. Bc7 {[%clk 0:00:04]}  Be3 {[%clk 0:00:05]} 70. Bd8 {[%clk 0:00:04]}  Bf4 {[%clk 0:00:04]} 71. Be7 {[%clk 0:00:04]}  Be5 {[%clk 0:00:05]} 72. Bc5 {[%clk 0:00:04]}  Kf4 {[%clk 0:00:05]} 73. Kg2 {[%clk 0:00:05]}  Bf6 {[%clk 0:00:04]} 74. Bb4 {[%clk 0:00:05]}  Kf5 {[%clk 0:00:05]} 75. Bd2 {[%clk 0:00:06]}  Be5 {[%clk 0:00:06]} 76. Bc1 {[%clk 0:00:07]}  Bf4 {[%clk 0:00:06]} 77. Bb2 {[%clk 0:00:07]}  Ke6 {[%clk 0:00:06]} 78. Bc3 {[%clk 0:00:08]}  Kf7 {[%clk 0:00:06]} 79. Bd4 {[%clk 0:00:08]}  Ke6 {[%clk 0:00:07]} 80. Bc5 {[%clk 0:00:08]}  Kd5 {[%clk 0:00:08]} 81. Be7 {[%clk 0:00:09]}  Kd4 {[%clk 0:00:08]} 82. Bf6+ {[%clk 0:00:09]}  Ke3 {[%clk 0:00:08]} 83. Bd8 {[%clk 0:00:09]}  Ke2 {[%clk 0:00:09]} 84. Bb6 {[%clk 0:00:09]}  h4 {[%clk 0:00:08]} 85. Bd8 {[%clk 0:00:09]}  Ke3 {[%clk 0:00:08]} 86. Bb6+ {[%clk 0:00:09]}  Ke2 {[%clk 0:00:08]} 87. Bd8 {[%clk 0:00:09]}  Be3 {[%clk 0:00:07]} 88. Bc7 {[%clk 0:00:08]}  h3+ {[%clk 0:00:06]} 89. Kxh3 {[%clk 0:00:08]}  Kxf3 {[%clk 0:00:07]} 90. Bb8 {[%clk 0:00:03]}  Bf4 {[%clk 0:00:07]} 91. Ba7 {[%clk 0:00:02]}  g4+ {[%clk 0:00:04]} 92. Kh4 {[%clk 0:00:03]}  Bg3+ {[%clk 0:00:05]} 93. Kg5 {[%clk 0:00:03]}  Be1 {[%clk 0:00:05]} 94. Bb8 {[%clk 0:00:04]}  Bd2+ {[%clk 0:00:06]} 95. Kh4 {[%clk 0:00:03]}  Bf4 {[%clk 0:00:06]} 96. Ba7 {[%clk 0:00:04]}  g3 {[%clk 0:00:06]} 97. Kh3 {[%clk 0:00:04]}  Be5 {[%clk 0:00:06]} 98. Bg1 {[%clk 0:00:04]}  Bf6 {[%clk 0:00:06]} 99. Bc5 {[%clk 0:00:04]}  Bc3 {[%clk 0:00:06]} 100. Bd6 {[%clk 0:00:04]}  g2 {[%clk 0:00:02]} 101. Bh2 {[%clk 0:00:04]}  Be5 {[%clk 0:00:02]} 102. Bg1 {[%clk 0:00:04]}  Bf4 {[%clk 0:00:02]} 103. Bc5 {[%clk 0:00:03]}  Bg3 {[%clk 0:00:03]} 104. Bg1 {[%clk 0:00:03]}  Bf2 {[%clk 0:00:02]} 105. Bh2 {[%clk 0:00:03]}  Be3 {[%clk 0:00:02]} 106. Kh4 {[%clk 0:00:03]}  Bf4 {[%clk 0:00:01]} 107. Bg1 {[%clk 0:00:02]}  Be3 {[%clk 0:00:01]} 108. Bh2 {[%clk 0:00:02]}  Bd4 {[%clk 0:00:01]} 109. Kh3 {[%clk 0:00:02]}  Bc5 {[%clk 0:00:01]} 110. Kh4 {[%clk 0:00:03]}  Ke2 {[%clk 0:00:02]} 111. Kh3 {[%clk 0:00:02]}  Kf1 {[%clk 0:00:02]} 112. Kh4 {[%clk 0:00:03]}  Bd6 {[%clk 0:00:03]} 113. Bg1 {[%clk 0:00:01]}  Kxg1 {[%clk 0:00:03]} 114. Kg4 {[%clk 0:00:02]}  Kf1 {[%clk 0:00:04]} 115. Kf5 {[%clk 0:00:03]}  g1=Q {[%clk 0:00:03]} 116. Ke4 {[%clk 0:00:04]}  Qf2 {[%clk 0:00:04]} 117. Kd5 {[%clk 0:00:04]}  Qe2 {[%clk 0:00:05]} 118. Kc6 {[%clk 0:00:05]}  Bf4 {[%clk 0:00:06]} 119. Kd7 {[%clk 0:00:06]}  Bg3 {[%clk 0:00:07]} 120. Kc6 {[%clk 0:00:07]}  Bf2 {[%clk 0:00:07]} 121. Kd7 {[%clk 0:00:08]}  Kg2 {[%clk 0:00:08]} 122. Kc6 {[%clk 0:00:09]}  Kf3 {[%clk 0:00:09]} 123. Kd7 {[%clk 0:00:10]}  Ke3 {[%clk 0:00:10]} 124. Kc6 {[%clk 0:00:11]}  Qd3 {[%clk 0:00:11]} 125. Kc7 {[%clk 0:00:09]}  Qd5 {[%clk 0:00:11]} 0-1


[Site "https://www.chess.com"]

[Event "Titled Tuesday Blitz October 31 Late 2023"]
[White "Bashirli, Nail"]
[Black "Sreyas Payyappat"]
[WhiteFideId "13406809"]
[BlackFideId "46674969"]
[WhiteElo "2763"]
[BlackElo "2548"]
[Result "1-0"]
[Round "3"]
[TimeControl "180+1"]
[Date "2023.10.31"]
[WhiteClock "0:01:22"]
[BlackClock "0:00:22"]
[Board "30"]

1. e4 {[%clk 0:03:00]}  c6 {[%clk 0:02:59]} 2. Nc3 {[%clk 0:03:00]}  d5 {[%clk 0:03:00]} 3. d4 {[%clk 0:03:01]}  dxe4 {[%clk 0:02:59]} 4. Nxe4 {[%clk 0:03:01]}  Nf6 {[%clk 0:02:59]} 5. Nxf6+ {[%clk 0:03:02]}  exf6 {[%clk 0:03:00]} 6. c3 {[%clk 0:03:03]}  Bd6 {[%clk 0:03:00]} 7. Bd3 {[%clk 0:03:03]}  O-O {[%clk 0:03:00]} 8. Qc2 {[%clk 0:03:03]}  Re8+ {[%clk 0:03:01]} 9. Ne2 {[%clk 0:03:03]}  h5 {[%clk 0:03:02]} 10. O-O {[%clk 0:03:04]}  Nd7 {[%clk 0:03:02]} 11. Re1 {[%clk 0:03:04]}  Nf8 {[%clk 0:03:00]} 12. Be3 {[%clk 0:03:04]}  h4 {[%clk 0:03:00]} 13. h3 {[%clk 0:03:03]}  Bd7 {[%clk 0:02:55]} 14. c4 {[%clk 0:03:03]}  Bb8 {[%clk 0:02:48]} 15. Nf4 {[%clk 0:02:08]}  Qc7 {[%clk 0:02:42]} 16. Bf5 {[%clk 0:02:01]}  g5 {[%clk 0:02:15]} 17. Bxd7 {[%clk 0:01:49]}  Nxd7 {[%clk 0:02:13]} 18. Qf5 {[%clk 0:01:41]}  gxf4 {[%clk 0:01:50]} 19. Qg4+ {[%clk 0:01:31]}  Kf8 {[%clk 0:01:50]} 20. Bd2 {[%clk 0:01:22]}  f3 {[%clk 0:00:22]} 21. Bh6# {[%clk 0:01:22]} 1-0


[Site "https://www.chess.com"]

[Event "Titled Tuesday Blitz October 31 Late 2023"]
[White "Krzyzanowski, Marcin"]
[Black "Santos Flores, Alberto"]
[WhiteFideId "1132199"]
[BlackFideId "3601234"]
[WhiteElo "2758"]
[BlackElo "2510"]
[Result "1-0"]
[Round "3"]
[TimeControl "180+1"]
[Date "2023.10.31"]
[WhiteClock "0:00:05"]
[BlackClock "0:00:00"]
[Board "31"]

1. e4 {[%clk 0:03:00]}  e6 {[%clk 0:02:57]} 2. d4 {[%clk 0:03:00]}  d5 {[%clk 0:02:58]} 3. Nc3 {[%clk 0:03:00]}  Nf6 {[%clk 0:02:58]} 4. e5 {[%clk 0:03:00]}  Nfd7 {[%clk 0:02:58]} 5. Nce2 {[%clk 0:03:01]}  c5 {[%clk 0:02:58]} 6. c3 {[%clk 0:03:02]}  Nc6 {[%clk 0:02:58]} 7. Nf3 {[%clk 0:03:02]}  cxd4 {[%clk 0:02:54]} 8. cxd4 {[%clk 0:03:02]}  f6 {[%clk 0:02:54]} 9. exf6 {[%clk 0:02:58]}  Nxf6 {[%clk 0:02:54]} 10. Nc3 {[%clk 0:02:55]}  Bd6 {[%clk 0:02:54]} 11. Bg5 {[%clk 0:02:49]}  O-O {[%clk 0:02:52]} 12. Bd3 {[%clk 0:02:45]}  e5 {[%clk 0:02:21]} 13. Bxf6 {[%clk 0:02:07]}  Rxf6 {[%clk 0:01:54]} 14. dxe5 {[%clk 0:01:59]}  Nxe5 {[%clk 0:01:53]} 15. Nxe5 {[%clk 0:01:21]}  Bxe5 {[%clk 0:01:53]} 16. h3 {[%clk 0:01:18]}  Bxc3+ {[%clk 0:01:32]} 17. bxc3 {[%clk 0:01:18]}  Qe7+ {[%clk 0:01:32]} 18. Kf1 {[%clk 0:01:16]}  Be6 {[%clk 0:01:31]} 19. Be2 {[%clk 0:01:09]}  Qc5 {[%clk 0:01:27]} 20. Qd4 {[%clk 0:01:09]}  Rc8 {[%clk 0:01:24]} 21. Rd1 {[%clk 0:00:44]}  Qxc3 {[%clk 0:01:21]} 22. Qxa7 {[%clk 0:00:38]}  Qb2 {[%clk 0:00:52]} 23. Qd4 {[%clk 0:00:32]}  Qxa2 {[%clk 0:00:41]} 24. Bf3 {[%clk 0:00:33]}  b5 {[%clk 0:00:33]} 25. Kg1 {[%clk 0:00:33]}  Qc4 {[%clk 0:00:32]} 26. Kh2 {[%clk 0:00:32]}  Qxd4 {[%clk 0:00:32]} 27. Rxd4 {[%clk 0:00:33]}  Rc2 {[%clk 0:00:30]} 28. Re1 {[%clk 0:00:16]}  Kf7 {[%clk 0:00:16]} 29. Kg1 {[%clk 0:00:15]}  Rc4 {[%clk 0:00:15]} 30. Rd3 {[%clk 0:00:11]}  d4 {[%clk 0:00:13]} 31. Rb1 {[%clk 0:00:10]}  b4 {[%clk 0:00:12]} 32. Rbd1 {[%clk 0:00:08]}  Rf4 {[%clk 0:00:10]} 33. g3 {[%clk 0:00:08]}  Rf6 {[%clk 0:00:10]} 34. Be4 {[%clk 0:00:05]}  Rc3 {[%clk 0:00:07]} 35. Rxd4 {[%clk 0:00:05]}  b3 {[%clk 0:00:07]} 36. Rb4 {[%clk 0:00:05]}  Rc4 {[%clk 0:00:06]} 37. Rb7+ {[%clk 0:00:05]}  Ke8 {[%clk 0:00:05]} 38. Bxh7 {[%clk 0:00:04]}  Rc8 {[%clk 0:00:04]} 39. Be4 {[%clk 0:00:03]}  Bxh3 {[%clk 0:00:02]} 40. Rxb3 {[%clk 0:00:03]}  Be6 {[%clk 0:00:02]} 41. Re3 {[%clk 0:00:04]}  Kf8 {[%clk 0:00:02]} 42. Bd5 {[%clk 0:00:04]}  Bxd5 {[%clk 0:00:02]} 43. Rxd5 {[%clk 0:00:05]}  Re8 {[%clk 0:00:03]} 44. Rxe8+ {[%clk 0:00:05]}  Kxe8 {[%clk 0:00:03]} 45. Kg2 {[%clk 0:00:06]}  Kf7 {[%clk 0:00:04]} 46. Rg5 {[%clk 0:00:06]}  Ra6 {[%clk 0:00:04]} 47. f4 {[%clk 0:00:07]}  Ra3 {[%clk 0:00:04]} 48. Kh3 {[%clk 0:00:07]}  Kf6 {[%clk 0:00:05]} 49. Kg4 {[%clk 0:00:08]}  Rb3 {[%clk 0:00:05]} 50. Rf5+ {[%clk 0:00:08]}  Kg6 {[%clk 0:00:06]} 51. Re5 {[%clk 0:00:09]}  Ra3 {[%clk 0:00:06]} 52. Re6+ {[%clk 0:00:10]}  Kf7 {[%clk 0:00:06]} 53. Rb6 {[%clk 0:00:10]}  Ra4 {[%clk 0:00:05]} 54. Kg5 {[%clk 0:00:09]}  Ra5+ {[%clk 0:00:05]} 55. f5 {[%clk 0:00:10]}  Ra4 {[%clk 0:00:04]} 56. g4 {[%clk 0:00:10]}  Ra5 {[%clk 0:00:05]} 57. Rb7+ {[%clk 0:00:10]}  Kf8 {[%clk 0:00:05]} 58. Rc7 {[%clk 0:00:10]}  Rb5 {[%clk 0:00:04]} 59. Rc8+ {[%clk 0:00:11]}  Kf7 {[%clk 0:00:04]} 60. Rh8 {[%clk 0:00:12]}  Ra5 {[%clk 0:00:04]} 61. Rh7 {[%clk 0:00:11]}  Kg8 {[%clk 0:00:05]} 62. Rh1 {[%clk 0:00:11]}  Kf7 {[%clk 0:00:05]} 63. Rc1 {[%clk 0:00:12]}  Rb5 {[%clk 0:00:05]} 64. Rc6 {[%clk 0:00:12]}  Ra5 {[%clk 0:00:05]} 65. Rc7+ {[%clk 0:00:13]}  Kf8 {[%clk 0:00:06]} 66. Kh5 {[%clk 0:00:13]}  Rb5 {[%clk 0:00:06]} 67. g5 {[%clk 0:00:12]}  Rxf5 {[%clk 0:00:05]} 68. Kg6 {[%clk 0:00:12]}  Ra5 {[%clk 0:00:05]} 69. Rc8+ {[%clk 0:00:12]}  Ke7 {[%clk 0:00:05]} 70. Rg8 {[%clk 0:00:13]}  Ke6 {[%clk 0:00:05]} 71. Rxg7 {[%clk 0:00:13]}  Rb5 {[%clk 0:00:05]} 72. Rg8 {[%clk 0:00:11]}  Ke7 {[%clk 0:00:05]} 73. Kh7 {[%clk 0:00:08]}  Kf7 {[%clk 0:00:04]} 74. g6+ {[%clk 0:00:08]}  Kf6 {[%clk 0:00:05]} 75. Rf8+ {[%clk 0:00:08]}  Ke7 {[%clk 0:00:05]} 76. Rf7+ {[%clk 0:00:08]}  Ke8 {[%clk 0:00:05]} 77. Rf2 {[%clk 0:00:07]}  Rh5+ {[%clk 0:00:04]} 78. Kg8 {[%clk 0:00:07]}  Ke7 {[%clk 0:00:04]} 79. g7 {[%clk 0:00:05]}  Rg5 {[%clk 0:00:02]} 80. Re2+ {[%clk 0:00:05]}  Kf6 {[%clk 0:00:03]} 81. Kf8 {[%clk 0:00:04]}  Ra5 {[%clk 0:00:01]} 82. g8=Q {[%clk 0:00:04]}  Ra8+ {[%clk 0:00:00]} 83. Re8 {[%clk 0:00:05]} 1-0


[Site "https://www.chess.com"]

[Event "Titled Tuesday Blitz October 31 Late 2023"]
[White "Kornyukov, Alexey"]
[Black "DopplerCharlotteDeWitte"]
[WhiteFideId "4150457"]
[WhiteElo "2311"]
[BlackElo "2742"]
[Result "0-1"]
[Round "3"]
[TimeControl "180+1"]
[Date "2023.10.31"]
[WhiteClock "0:00:00"]
[BlackClock "0:00:41"]
[Board "35"]

1. d4 {[%clk 0:03:00]}  d5 {[%clk 0:02:59]} 2. c4 {[%clk 0:03:00]}  e6 {[%clk 0:02:59]} 3. Nc3 {[%clk 0:03:00]}  Nf6 {[%clk 0:02:59]} 4. cxd5 {[%clk 0:03:00]}  exd5 {[%clk 0:02:59]} 5. Bg5 {[%clk 0:03:00]}  Bb4 {[%clk 0:03:00]} 6. e3 {[%clk 0:02:59]}  h6 {[%clk 0:03:00]} 7. Bh4 {[%clk 0:02:52]}  g5 {[%clk 0:03:00]} 8. Bg3 {[%clk 0:02:51]}  Ne4 {[%clk 0:03:00]} 9. Ne2 {[%clk 0:02:31]}  h5 {[%clk 0:02:59]} 10. h4 {[%clk 0:02:22]}  Nxg3 {[%clk 0:02:59]} 11. Nxg3 {[%clk 0:02:16]}  gxh4 {[%clk 0:02:59]} 12. Nxh5 {[%clk 0:01:59]}  c6 {[%clk 0:02:58]} 13. Bd3 {[%clk 0:01:46]}  Qg5 {[%clk 0:02:56]} 14. Nf4 {[%clk 0:01:46]}  Bd6 {[%clk 0:02:36]} 15. Nce2 {[%clk 0:01:43]}  Bb4+ {[%clk 0:02:07]} 16. Nc3 {[%clk 0:01:41]}  Bf5 {[%clk 0:01:56]} 17. Qc2 {[%clk 0:01:32]}  Bxd3 {[%clk 0:01:55]} 18. Qxd3 {[%clk 0:01:32]}  Nd7 {[%clk 0:01:51]} 19. O-O-O {[%clk 0:01:10]}  O-O-O {[%clk 0:01:51]} 20. Kb1 {[%clk 0:01:06]}  Kb8 {[%clk 0:01:51]} 21. Nce2 {[%clk 0:00:49]}  Nf6 {[%clk 0:01:51]} 22. f3 {[%clk 0:00:43]}  Rde8 {[%clk 0:01:45]} 23. a3 {[%clk 0:00:34]}  Bd6 {[%clk 0:01:45]} 24. Rdg1 {[%clk 0:00:19]}  Nh5 {[%clk 0:01:45]} 25. Nxh5 {[%clk 0:00:16]}  Rxh5 {[%clk 0:01:46]} 26. e4 {[%clk 0:00:14]}  dxe4 {[%clk 0:01:34]} 27. fxe4 {[%clk 0:00:15]}  Qg6 {[%clk 0:01:24]} 28. Nc3 {[%clk 0:00:14]}  Bg3 {[%clk 0:01:25]} 29. Rf1 {[%clk 0:00:12]}  Rg5 {[%clk 0:01:14]} 30. Rf3 {[%clk 0:00:10]}  Rd8 {[%clk 0:01:10]} 31. Rhf1 {[%clk 0:00:10]}  Be5 {[%clk 0:01:08]} 32. d5 {[%clk 0:00:08]}  Rxg2 {[%clk 0:01:01]} 33. Rxf7 {[%clk 0:00:06]}  Bxc3 {[%clk 0:01:01]} 34. Qxc3 {[%clk 0:00:02]}  Qxe4+ {[%clk 0:01:01]} 35. Ka1 {[%clk 0:00:02]}  Qxd5 {[%clk 0:00:49]} 36. Rf8 {[%clk 0:00:02]}  a5 {[%clk 0:00:42]} 37. Rxd8+ {[%clk 0:00:01]}  Qxd8 {[%clk 0:00:43]} 38. Qe5+ {[%clk 0:00:01]}  Ka7 {[%clk 0:00:41]} 39. Qe3+ {[%clk 0:00:00]}  Qb6 {[%clk 0:00:41]} 0-1


[Site "https://www.chess.com"]